[Event "Titled Tuesday Blitz April 4 Early 2023"]
[White "Ambartsumova, Karina"]
[Black "Urazayev, Arystanbek"]
[WhiteFideId "4166299"]
[BlackFideId "13709810"]
[WhiteElo "2240"]
[BlackElo "2449"]
[Result "0-1"]
[Round "09"]
[TimeControl "180+2"]
[Date "2023.04.04"]
[WhiteClock "0:00:03"]
[BlackClock "0:01:27"]

1. Nf3 {[%clk 0:03:00]}  Nf6 {[%clk 0:02:58]} 2. c4 {[%clk 0:03:00]}  g6 {[%clk 0:02:59]} 3. g3 {[%clk 0:02:58]}  Bg7 {[%clk 0:03:00]} 4. Bg2 {[%clk 0:02:59]}  O-O {[%clk 0:03:00]} 5. O-O {[%clk 0:02:59]}  d6 {[%clk 0:03:01]} 6. d4 {[%clk 0:03:00]}  c5 {[%clk 0:02:56]} 7. Nc3 {[%clk 0:02:58]}  Nc6 {[%clk 0:02:56]} 8. d5 {[%clk 0:02:53]}  Na5 {[%clk 0:02:56]} 9. Qd3 {[%clk 0:02:52]}  a6 {[%clk 0:02:56]} 10. e4 {[%clk 0:02:50]}  b5 {[%clk 0:02:55]} 11. cxb5 {[%clk 0:02:42]}  axb5 {[%clk 0:02:55]} 12. e5 {[%clk 0:02:32]}  Bf5 {[%clk 0:02:35]} 13. Qxb5 {[%clk 0:02:24]}  Ne4 {[%clk 0:02:35]} 14. Qe2 {[%clk 0:02:00]}  Nxc3 {[%clk 0:02:35]} 15. bxc3 {[%clk 0:02:01]}  Nb3 {[%clk 0:02:36]} 16. Bg5 {[%clk 0:01:41]}  Nxa1 {[%clk 0:02:34]} 17. exd6 {[%clk 0:01:27]}  Qxd6 {[%clk 0:02:34]} 18. Bxe7 {[%clk 0:01:27]}  Rfe8 {[%clk 0:02:35]} 19. Bxd6 {[%clk 0:01:28]}  Rxe2 {[%clk 0:02:35]} 20. Rxa1 {[%clk 0:01:28]}  Raxa2 {[%clk 0:02:35]} 21. Rf1 {[%clk 0:01:10]}  c4 {[%clk 0:02:30]} 22. Bb4 {[%clk 0:00:58]}  Rac2 {[%clk 0:02:15]} 23. Ra1 {[%clk 0:00:48]}  h6 {[%clk 0:02:15]} 24. Bc5 {[%clk 0:00:36]}  Bxc3 {[%clk 0:02:09]} 25. Ra8+ {[%clk 0:00:35]}  Kg7 {[%clk 0:02:09]} 26. h3 {[%clk 0:00:35]}  Ra2 {[%clk 0:01:50]} 27. Rd8 {[%clk 0:00:28]}  Be4 {[%clk 0:01:44]} 28. Nd4 {[%clk 0:00:26]}  Bxg2 {[%clk 0:01:33]} 29. Nxe2 {[%clk 0:00:25]}  Bf3 {[%clk 0:01:33]} 30. Nc1 {[%clk 0:00:03]}  Rd2 {[%clk 0:01:27]} 0-1


[Site "https://www.chess.com"]

[Event "Titled Tuesday Blitz April 4 Early 2023"]
[White "Sielecki, Christof"]
[Black "Pakleza, Zbigniew"]
[WhiteFideId "4620437"]
[BlackFideId "1119290"]
[WhiteElo "2443"]
[BlackElo "2410"]
[Result "1-0"]
[Round "09"]
[TimeControl "180+2"]
[Date "2023.04.04"]
[WhiteClock "0:00:18"]
[BlackClock "0:00:02"]

1. e4 {[%clk 0:03:00]}  d6 {[%clk 0:02:55]} 2. d4 {[%clk 0:03:00]}  Nf6 {[%clk 0:02:56]} 3. Nc3 {[%clk 0:03:00]}  c6 {[%clk 0:02:57]} 4. f4 {[%clk 0:02:59]}  Qb6 {[%clk 0:02:56]} 5. Nf3 {[%clk 0:02:48]}  Bg4 {[%clk 0:02:56]} 6. a3 {[%clk 0:02:42]}  e5 {[%clk 0:02:53]} 7. Be3 {[%clk 0:02:32]}  Bxf3 {[%clk 0:02:50]} 8. gxf3 {[%clk 0:02:33]}  Nbd7 {[%clk 0:02:48]} 9. Qd2 {[%clk 0:02:14]}  exf4 {[%clk 0:02:26]} 10. Bxf4 {[%clk 0:02:05]}  Qxb2 {[%clk 0:01:56]} 11. Rb1 {[%clk 0:02:04]}  Qxa3 {[%clk 0:01:56]} 12. Rxb7 {[%clk 0:01:59]}  Nb6 {[%clk 0:01:48]} 13. d5 {[%clk 0:01:44]}  g5 {[%clk 0:01:01]} 14. Bxg5 {[%clk 0:01:17]}  Bg7 {[%clk 0:01:01]} 15. dxc6 {[%clk 0:01:10]}  O-O {[%clk 0:01:01]} 16. Rg1 {[%clk 0:01:01]}  Qc5 {[%clk 0:00:38]} 17. Qe3 {[%clk 0:00:53]}  Kh8 {[%clk 0:00:20]} 18. Qxc5 {[%clk 0:00:46]}  dxc5 {[%clk 0:00:21]} 19. Bh3 {[%clk 0:00:38]}  Nc4 {[%clk 0:00:13]} 20. Nd5 {[%clk 0:00:31]}  Nh5 {[%clk 0:00:08]} 21. Bg4 {[%clk 0:00:28]}  Bd4 {[%clk 0:00:07]} 22. Bxh5 {[%clk 0:00:26]}  f6 {[%clk 0:00:07]} 23. Bh6 {[%clk 0:00:23]}  Rg8 {[%clk 0:00:02]} 24. Rxg8+ {[%clk 0:00:22]}  Rxg8 {[%clk 0:00:03]} 25. Bg4 {[%clk 0:00:20]}  Nd6 {[%clk 0:00:01]} 26. Rd7 {[%clk 0:00:19]}  f5 {[%clk 0:00:01]} 27. exf5 {[%clk 0:00:18]}  Nb5 {[%clk 0:00:01]} 28. c7 {[%clk 0:00:18]}  Nxc7 {[%clk 0:00:01]} 29. Nxc7 {[%clk 0:00:18]}  a5 {[%clk 0:00:02]} 30. Ne6 {[%clk 0:00:18]}  a4 {[%clk 0:00:01]} 31. Nxd4 {[%clk 0:00:18]}  cxd4 {[%clk 0:00:02]} 32. Ra7 {[%clk 0:00:18]}  Ra8 {[%clk 0:00:02]} 33. Rxa8# {[%clk 0:00:18]} 1-0


[Site "https://www.chess.com"]

[Event "Titled Tuesday Blitz April 4 Early 2023"]
[White "Gabdrakhmanov, Azat"]
[Black "Cherniaiev, Tykhon"]
[WhiteFideId "34189197"]
[BlackFideId "14182360"]
[WhiteElo "2306"]
[BlackElo "2450"]
[Result "0-1"]
[Round "09"]
[TimeControl "180+2"]
[Date "2023.04.04"]
[WhiteClock "0:00:02"]
[BlackClock "0:00:06"]

1. e4 {[%clk 0:03:00]}  e5 {[%clk 0:02:57]} 2. Nf3 {[%clk 0:03:01]}  Nc6 {[%clk 0:02:57]} 3. Bb5 {[%clk 0:03:00]}  Nf6 {[%clk 0:02:57]} 4. d3 {[%clk 0:03:00]}  Bc5 {[%clk 0:02:54]} 5. c3 {[%clk 0:02:59]}  d5 {[%clk 0:02:53]} 6. Nbd2 {[%clk 0:02:59]}  O-O {[%clk 0:02:52]} 7. O-O {[%clk 0:02:58]}  Bg4 {[%clk 0:02:50]} 8. h3 {[%clk 0:02:58]}  Bxf3 {[%clk 0:02:42]} 9. Qxf3 {[%clk 0:02:58]}  a6 {[%clk 0:02:42]} 10. Ba4 {[%clk 0:02:56]}  b5 {[%clk 0:02:19]} 11. Bb3 {[%clk 0:02:56]}  d4 {[%clk 0:02:14]} 12. a3 {[%clk 0:02:15]}  Qd6 {[%clk 0:02:06]} 13. Re1 {[%clk 0:02:07]}  Rad8 {[%clk 0:02:04]} 14. Bc2 {[%clk 0:02:03]}  Bb6 {[%clk 0:02:01]} 15. Nf1 {[%clk 0:02:00]}  dxc3 {[%clk 0:01:54]} 16. bxc3 {[%clk 0:02:00]}  Ba5 {[%clk 0:01:54]} 17. Bb2 {[%clk 0:01:39]}  Qc5 {[%clk 0:01:39]} 18. Rac1 {[%clk 0:01:39]}  Rfe8 {[%clk 0:01:05]} 19. Bb3 {[%clk 0:01:35]}  Qe7 {[%clk 0:00:59]} 20. Red1 {[%clk 0:01:31]}  Bb6 {[%clk 0:00:56]} 21. Ne3 {[%clk 0:01:30]}  Bxe3 {[%clk 0:00:49]} 22. Qxe3 {[%clk 0:01:31]}  Rd7 {[%clk 0:00:43]} 23. f3 {[%clk 0:01:18]}  Red8 {[%clk 0:00:42]} 24. d4 {[%clk 0:01:18]}  Na5 {[%clk 0:00:35]} 25. Ba2 {[%clk 0:01:18]}  exd4 {[%clk 0:00:32]} 26. cxd4 {[%clk 0:01:17]}  c5 {[%clk 0:00:32]} 27. d5 {[%clk 0:00:45]}  Nb7 {[%clk 0:00:21]} 28. Qf2 {[%clk 0:00:32]}  c4 {[%clk 0:00:20]} 29. Bd4 {[%clk 0:00:32]}  Qxa3 {[%clk 0:00:17]} 30. Ra1 {[%clk 0:00:19]}  Qe7 {[%clk 0:00:15]} 31. Bb1 {[%clk 0:00:19]}  a5 {[%clk 0:00:12]} 32. Bc2 {[%clk 0:00:19]}  a4 {[%clk 0:00:12]} 33. Rdb1 {[%clk 0:00:16]}  Nxd5 {[%clk 0:00:08]} 34. exd5 {[%clk 0:00:14]}  Rxd5 {[%clk 0:00:09]} 35. Be3 {[%clk 0:00:14]}  f5 {[%clk 0:00:09]} 36. Rd1 {[%clk 0:00:13]}  Rxd1+ {[%clk 0:00:08]} 37. Rxd1 {[%clk 0:00:13]}  Rxd1+ {[%clk 0:00:09]} 38. Bxd1 {[%clk 0:00:14]}  a3 {[%clk 0:00:09]} 39. Qd2 {[%clk 0:00:10]}  Qd6 {[%clk 0:00:09]} 40. Qc2 {[%clk 0:00:06]}  a2 {[%clk 0:00:08]} 41. Qxa2 {[%clk 0:00:06]}  Qxd1+ {[%clk 0:00:08]} 42. Kh2 {[%clk 0:00:06]}  Qd6+ {[%clk 0:00:08]} 43. f4 {[%clk 0:00:07]}  Qb8 {[%clk 0:00:07]} 44. Qa6 {[%clk 0:00:05]}  Nd6 {[%clk 0:00:07]} 45. Ba7 {[%clk 0:00:05]}  Qc7 {[%clk 0:00:07]} 46. Bb6 {[%clk 0:00:06]}  Qc6 {[%clk 0:00:06]} 47. Qa7 {[%clk 0:00:06]}  h6 {[%clk 0:00:05]} 48. Qb8+ {[%clk 0:00:06]}  Kh7 {[%clk 0:00:05]} 49. Bd4 {[%clk 0:00:07]}  Ne4 {[%clk 0:00:05]} 50. Qa7 {[%clk 0:00:07]}  Qg6 {[%clk 0:00:04]} 51. g4 {[%clk 0:00:06]}  fxg4 {[%clk 0:00:04]} 52. f5 {[%clk 0:00:07]}  Qd6+ {[%clk 0:00:04]} 53. Kh1 {[%clk 0:00:04]}  Ng3+ {[%clk 0:00:04]} 54. Kg2 {[%clk 0:00:03]}  Nxf5 {[%clk 0:00:05]} 55. Bf2 {[%clk 0:00:03]}  Qd5+ {[%clk 0:00:04]} 56. Kg1 {[%clk 0:00:03]}  gxh3 {[%clk 0:00:04]} 57. Kf1 {[%clk 0:00:02]}  h2 {[%clk 0:00:05]} 58. Ke2 {[%clk 0:00:02]}  h1=Q {[%clk 0:00:05]} 59. Be1 {[%clk 0:00:02]}  Qhf3# {[%clk 0:00:06]} 0-1


[Site "https://www.chess.com"]

[Event "Titled Tuesday Blitz April 4 Early 2023"]
[White "Orlov, Georgi"]
[Black "Kosteniuk, Alexandra"]
[WhiteFideId "2011271"]
[BlackFideId "4128125"]
[WhiteElo "2575"]
[BlackElo "2453"]
[Result "1/2-1/2"]
[Round "09"]
[TimeControl "180+2"]
[Date "2023.04.04"]
[WhiteClock "0:00:04"]
[BlackClock "0:00:05"]

1. d4 {[%clk 0:03:00]}  f5 {[%clk 0:02:59]} 2. Nf3 {[%clk 0:02:59]}  Nf6 {[%clk 0:02:59]} 3. c4 {[%clk 0:02:58]}  g6 {[%clk 0:03:00]} 4. Nc3 {[%clk 0:02:56]}  Bg7 {[%clk 0:03:00]} 5. g3 {[%clk 0:02:56]}  O-O {[%clk 0:03:00]} 6. Qb3 {[%clk 0:02:55]}  c6 {[%clk 0:02:54]} 7. c5+ {[%clk 0:02:49]}  e6 {[%clk 0:02:52]} 8. Ne5 {[%clk 0:02:46]}  b6 {[%clk 0:02:49]} 9. Be3 {[%clk 0:02:35]}  Nd5 {[%clk 0:02:36]} 10. Nxd5 {[%clk 0:02:33]}  cxd5 {[%clk 0:02:31]} 11. Nd3 {[%clk 0:02:31]}  Nc6 {[%clk 0:02:29]} 12. Qc3 {[%clk 0:02:22]}  Ba6 {[%clk 0:02:29]} 13. Bg2 {[%clk 0:02:06]}  Rc8 {[%clk 0:02:28]} 14. b4 {[%clk 0:02:03]}  d6 {[%clk 0:02:23]} 15. O-O {[%clk 0:01:57]}  Bxd3 {[%clk 0:02:16]} 16. exd3 {[%clk 0:01:49]}  dxc5 {[%clk 0:02:03]} 17. bxc5 {[%clk 0:01:49]}  bxc5 {[%clk 0:02:02]} 18. Qxc5 {[%clk 0:01:46]}  Nxd4 {[%clk 0:02:01]} 19. Qxa7 {[%clk 0:01:42]}  Nc6 {[%clk 0:01:34]} 20. Qa4 {[%clk 0:01:34]}  Bxa1 {[%clk 0:01:26]} 21. Rxa1 {[%clk 0:01:33]}  Rf7 {[%clk 0:01:25]} 22. Re1 {[%clk 0:01:29]}  Qd6 {[%clk 0:01:16]} 23. d4 {[%clk 0:01:14]}  Qb4 {[%clk 0:01:02]} 24. Qd1 {[%clk 0:01:00]}  Re7 {[%clk 0:00:50]} 25. h4 {[%clk 0:00:50]}  Ra8 {[%clk 0:00:41]} 26. Re2 {[%clk 0:00:41]}  Qa4 {[%clk 0:00:39]} 27. Qd2 {[%clk 0:00:36]}  Ree8 {[%clk 0:00:26]} 28. Kh2 {[%clk 0:00:35]}  Kf7 {[%clk 0:00:25]} 29. h5 {[%clk 0:00:34]}  Na5 {[%clk 0:00:23]} 30. Bg5 {[%clk 0:00:30]}  Nc4 {[%clk 0:00:22]} 31. Qf4 {[%clk 0:00:29]}  Qd7 {[%clk 0:00:21]} 32. Qh4 {[%clk 0:00:27]}  Rg8 {[%clk 0:00:19]} 33. Bf3 {[%clk 0:00:20]}  Ra3 {[%clk 0:00:18]} 34. hxg6+ {[%clk 0:00:17]}  hxg6 {[%clk 0:00:18]} 35. Bf6 {[%clk 0:00:17]}  Rg7 {[%clk 0:00:14]} 36. Bxg7 {[%clk 0:00:17]}  Kxg7 {[%clk 0:00:14]} 37. Bxd5 {[%clk 0:00:13]}  Qxd5 {[%clk 0:00:12]} 38. Qe7+ {[%clk 0:00:13]}  Kh6 {[%clk 0:00:12]} 39. Rxe6 {[%clk 0:00:10]}  Kh5 {[%clk 0:00:06]} 40. Qh7+ {[%clk 0:00:10]}  Kg4 {[%clk 0:00:07]} 41. Qxg6+ {[%clk 0:00:09]}  Kf3 {[%clk 0:00:07]} 42. Rf6 {[%clk 0:00:08]}  Qxd4 {[%clk 0:00:04]} 43. Rxf5+ {[%clk 0:00:07]}  Ke2 {[%clk 0:00:05]} 44. Qe6+ {[%clk 0:00:07]}  Kf1 {[%clk 0:00:04]} 45. Rf4 {[%clk 0:00:06]}  Qh8+ {[%clk 0:00:04]} 46. Qh3+ {[%clk 0:00:05]}  Qxh3+ {[%clk 0:00:04]} 47. Kxh3 {[%clk 0:00:06]}  Nd2 {[%clk 0:00:04]} 48. Rg4 {[%clk 0:00:05]}  Nf3 {[%clk 0:00:04]} 49. Rf4 {[%clk 0:00:05]}  Kxf2 {[%clk 0:00:04]} 50. Kg4 {[%clk 0:00:05]}  Rd3 {[%clk 0:00:04]} 51. Rf5 {[%clk 0:00:05]}  Kg2 {[%clk 0:00:04]} 52. Kf4 {[%clk 0:00:05]}  Nh2 {[%clk 0:00:04]} 53. Ke4 {[%clk 0:00:05]}  Rxg3 {[%clk 0:00:04]} 54. a4 {[%clk 0:00:04]}  Ra3 {[%clk 0:00:04]} 55. a5 {[%clk 0:00:05]}  Ng4 {[%clk 0:00:04]} 56. Rg5 {[%clk 0:00:05]}  Kh3 {[%clk 0:00:04]} 57. Kd4 {[%clk 0:00:05]}  Ra4+ {[%clk 0:00:04]} 58. Kc3 {[%clk 0:00:05]}  Nf6 {[%clk 0:00:04]} 59. Kb3 {[%clk 0:00:05]}  Ra1 {[%clk 0:00:04]} 60. Kb4 {[%clk 0:00:05]}  Ne4 {[%clk 0:00:04]} 61. Re5 {[%clk 0:00:05]}  Nd2 {[%clk 0:00:04]} 62. Kb5 {[%clk 0:00:05]}  Nb3 {[%clk 0:00:03]} 63. a6 {[%clk 0:00:05]}  Nd4+ {[%clk 0:00:03]} 64. Kb6 {[%clk 0:00:05]}  Rb1+ {[%clk 0:00:04]} 65. Kc7 {[%clk 0:00:04]}  Ra1 {[%clk 0:00:04]} 66. Kb6 {[%clk 0:00:04]}  Rb1+ {[%clk 0:00:04]} 67. Kc7 {[%clk 0:00:04]}  Ra1 {[%clk 0:00:05]} 68. Kb6 {[%clk 0:00:04]} 1/2-1/2


[Site "https://www.chess.com"]

[Event "Titled Tuesday Blitz April 4 Early 2023"]
[White "Horak, Martin"]
[Black "Prohaszka, Peter"]
[WhiteFideId "367095"]
[BlackFideId "726265"]
[WhiteElo "2091"]
[BlackElo "2626"]
[Result "0-1"]
[Round "09"]
[TimeControl "180+2"]
[Date "2023.04.04"]
[WhiteClock "0:00:01"]
[BlackClock "0:00:04"]

1. e4 {[%clk 0:02:52]}  c6 {[%clk 0:02:50]} 2. Ne2 {[%clk 0:02:50]}  d5 {[%clk 0:02:51]} 3. e5 {[%clk 0:02:50]}  d4 {[%clk 0:02:50]} 4. d3 {[%clk 0:02:37]}  Qa5+ {[%clk 0:02:39]} 5. Nd2 {[%clk 0:02:34]}  Be6 {[%clk 0:02:17]} 6. f4 {[%clk 0:02:19]}  Qd5 {[%clk 0:02:13]} 7. Ne4 {[%clk 0:02:05]}  f5 {[%clk 0:02:01]} 8. Ng5 {[%clk 0:01:56]}  Bc8 {[%clk 0:01:43]} 9. c4 {[%clk 0:01:32]}  Qd8 {[%clk 0:01:26]} 10. b4 {[%clk 0:01:22]}  c5 {[%clk 0:01:21]} 11. bxc5 {[%clk 0:01:21]}  e6 {[%clk 0:01:19]} 12. g3 {[%clk 0:01:13]}  Bxc5 {[%clk 0:01:12]} 13. Bg2 {[%clk 0:01:14]}  Ne7 {[%clk 0:01:10]} 14. O-O {[%clk 0:01:13]}  Nbc6 {[%clk 0:01:09]} 15. Qa4 {[%clk 0:01:09]}  O-O {[%clk 0:01:08]} 16. Ba3 {[%clk 0:01:09]}  Bxa3 {[%clk 0:01:01]} 17. Qxa3 {[%clk 0:01:10]}  h6 {[%clk 0:00:59]} 18. Nf3 {[%clk 0:01:09]}  g5 {[%clk 0:00:49]} 19. fxg5 {[%clk 0:00:54]}  hxg5 {[%clk 0:00:50]} 20. Nxg5 {[%clk 0:00:54]}  Nxe5 {[%clk 0:00:49]} 21. Nf4 {[%clk 0:00:55]}  Rf6 {[%clk 0:00:41]} 22. Rae1 {[%clk 0:00:53]}  N7g6 {[%clk 0:00:39]} 23. Nfxe6 {[%clk 0:00:35]}  Bxe6 {[%clk 0:00:38]} 24. Nxe6 {[%clk 0:00:35]}  Rxe6 {[%clk 0:00:30]} 25. Bd5 {[%clk 0:00:35]}  Qf6 {[%clk 0:00:26]} 26. Qd6 {[%clk 0:00:20]}  Re8 {[%clk 0:00:26]} 27. Bxe6+ {[%clk 0:00:12]}  Rxe6 {[%clk 0:00:26]} 28. Qb8+ {[%clk 0:00:12]}  Kg7 {[%clk 0:00:25]} 29. Qxb7+ {[%clk 0:00:12]}  Re7 {[%clk 0:00:25]} 30. Qd5 {[%clk 0:00:10]}  f4 {[%clk 0:00:20]} 31. Kg2 {[%clk 0:00:07]}  f3+ {[%clk 0:00:18]} 32. Rxf3 {[%clk 0:00:06]}  Nxf3 {[%clk 0:00:15]} 33. Rxe7+ {[%clk 0:00:06]}  Nxe7 {[%clk 0:00:11]} 34. Qxf3 {[%clk 0:00:05]}  Nf5 {[%clk 0:00:12]} 35. Qe4 {[%clk 0:00:02]}  Ne3+ {[%clk 0:00:12]} 36. Kh3 {[%clk 0:00:02]}  Qh6+ {[%clk 0:00:05]} 37. Qh4 {[%clk 0:00:02]}  Qe6+ {[%clk 0:00:04]} 38. g4 {[%clk 0:00:03]}  Qf7 {[%clk 0:00:04]} 39. Qg3 {[%clk 0:00:02]}  Qf1+ {[%clk 0:00:04]} 40. Kh4 {[%clk 0:00:02]}  Ng2+ {[%clk 0:00:03]} 41. Kh5 {[%clk 0:00:02]}  Qf7+ {[%clk 0:00:03]} 42. Kg5 {[%clk 0:00:01]}  Qf6+ {[%clk 0:00:03]} 43. Kh5 {[%clk 0:00:01]}  Qh6# {[%clk 0:00:04]} 0-1


[Site "https://www.chess.com"]

[Event "Titled Tuesday Blitz April 4 Early 2023"]
[White "TimGrutter03"]
[Black "Oleksiyenko, Mykhaylo"]
[BlackFideId "4152417"]
[WhiteElo "2563"]
[BlackElo "2551"]
[Result "1-0"]
[Round "09"]
[TimeControl "180+2"]
[Date "2023.04.04"]
[WhiteClock "0:00:02"]
[BlackClock "0:00:23"]

1. e4 {[%clk 0:01:19]}  c5 {[%clk 0:02:59]} 2. Nf3 {[%clk 0:01:13]}  Nc6 {[%clk 0:02:59]} 3. d4 {[%clk 0:01:12]}  cxd4 {[%clk 0:03:00]} 4. Nxd4 {[%clk 0:01:12]}  e5 {[%clk 0:03:00]} 5. Nb5 {[%clk 0:01:11]}  d6 {[%clk 0:02:59]} 6. c4 {[%clk 0:01:12]}  Be6 {[%clk 0:02:54]} 7. N1c3 {[%clk 0:01:10]}  a6 {[%clk 0:02:53]} 8. Na3 {[%clk 0:01:10]}  Nf6 {[%clk 0:02:49]} 9. Be2 {[%clk 0:01:09]}  g6 {[%clk 0:02:49]} 10. O-O {[%clk 0:01:09]}  Bg7 {[%clk 0:02:50]} 11. Nc2 {[%clk 0:01:07]}  Rc8 {[%clk 0:02:49]} 12. b3 {[%clk 0:01:06]}  O-O {[%clk 0:02:47]} 13. Bb2 {[%clk 0:01:05]}  b5 {[%clk 0:02:06]} 14. cxb5 {[%clk 0:01:02]}  axb5 {[%clk 0:02:07]} 15. Bxb5 {[%clk 0:00:36]}  Qb6 {[%clk 0:01:34]} 16. Bxc6 {[%clk 0:00:35]}  Rxc6 {[%clk 0:01:30]} 17. Nd5 {[%clk 0:00:34]}  Bxd5 {[%clk 0:01:21]} 18. exd5 {[%clk 0:00:34]}  Rc5 {[%clk 0:01:19]} 19. Ne3 {[%clk 0:00:33]}  Ra8 {[%clk 0:01:17]} 20. a4 {[%clk 0:00:22]}  Bh6 {[%clk 0:01:09]} 21. Qf3 {[%clk 0:00:15]}  Kg7 {[%clk 0:00:49]} 22. Nc4 {[%clk 0:00:13]}  Rxc4 {[%clk 0:00:46]} 23. a5 {[%clk 0:00:10]}  Qb5 {[%clk 0:00:43]} 24. bxc4 {[%clk 0:00:10]}  Qxb2 {[%clk 0:00:44]} 25. a6 {[%clk 0:00:07]}  Qb6 {[%clk 0:00:40]} 26. Qa3 {[%clk 0:00:06]}  Nd7 {[%clk 0:00:32]} 27. Rfb1 {[%clk 0:00:02]}  Qc5 {[%clk 0:00:32]} 28. a7 {[%clk 0:00:02]}  Qxa3 {[%clk 0:00:30]} 29. Rxa3 {[%clk 0:00:03]}  Kf8 {[%clk 0:00:29]} 30. Rb7 {[%clk 0:00:02]}  Ke7 {[%clk 0:00:29]} 31. Ra6 {[%clk 0:00:02]}  Kd8 {[%clk 0:00:23]} 32. Rxd6 {[%clk 0:00:02]} 1-0


[Site "https://www.chess.com"]

[Event "Titled Tuesday Blitz April 4 Early 2023"]
[White "Jessel, Stephen"]
[Black "Mortazavi, Ali"]
[WhiteFideId "628859"]
[BlackFideId "401323"]
[WhiteElo "2268"]
[BlackElo "2339"]
[Result "1-0"]
[Round "09"]
[TimeControl "180+2"]
[Date "2023.04.04"]
[WhiteClock "0:00:06"]
[BlackClock "0:00:04"]

1. Nf3 {[%clk 0:02:52]}  Nf6 {[%clk 0:02:59]} 2. g3 {[%clk 0:02:51]}  g6 {[%clk 0:02:59]} 3. b4 {[%clk 0:02:51]}  Bg7 {[%clk 0:03:00]} 4. Bb2 {[%clk 0:02:52]}  O-O {[%clk 0:03:01]} 5. c4 {[%clk 0:02:51]}  d6 {[%clk 0:02:58]} 6. Bg2 {[%clk 0:02:49]}  e5 {[%clk 0:02:58]} 7. O-O {[%clk 0:02:49]}  Nbd7 {[%clk 0:02:56]} 8. d3 {[%clk 0:02:48]}  a5 {[%clk 0:02:54]} 9. b5 {[%clk 0:02:46]}  Nc5 {[%clk 0:02:54]} 10. Nc3 {[%clk 0:02:46]}  Re8 {[%clk 0:02:52]} 11. Nd2 {[%clk 0:02:45]}  h5 {[%clk 0:02:47]} 12. Ba3 {[%clk 0:02:45]}  Ne6 {[%clk 0:02:36]} 13. Nd5 {[%clk 0:02:23]}  Nxd5 {[%clk 0:02:05]} 14. cxd5 {[%clk 0:02:23]}  Nd4 {[%clk 0:02:05]} 15. Rb1 {[%clk 0:02:16]}  Bd7 {[%clk 0:01:47]} 16. b6 {[%clk 0:02:08]}  cxb6 {[%clk 0:01:46]} 17. Nc4 {[%clk 0:02:00]}  Bg4 {[%clk 0:00:58]} 18. f3 {[%clk 0:01:54]}  Bd7 {[%clk 0:00:58]} 19. Nxd6 {[%clk 0:01:44]}  Bf8 {[%clk 0:00:40]} 20. Nc4 {[%clk 0:00:46]}  b5 {[%clk 0:00:31]} 21. Bxf8 {[%clk 0:00:45]}  bxc4 {[%clk 0:00:28]} 22. Bh6 {[%clk 0:00:34]}  c3 {[%clk 0:00:28]} 23. Rxb7 {[%clk 0:00:25]}  c2 {[%clk 0:00:25]} 24. Qd2 {[%clk 0:00:23]}  Rc8 {[%clk 0:00:20]} 25. Rc1 {[%clk 0:00:23]}  Ba4 {[%clk 0:00:16]} 26. f4 {[%clk 0:00:19]}  e4 {[%clk 0:00:12]} 27. Bxe4 {[%clk 0:00:19]}  Nxe2+ {[%clk 0:00:09]} 28. Qxe2 {[%clk 0:00:19]}  Qxd5 {[%clk 0:00:10]} 29. Bxd5 {[%clk 0:00:11]}  Rxe2 {[%clk 0:00:10]} 30. Rxf7 {[%clk 0:00:10]}  Kh8 {[%clk 0:00:05]} 31. Bg5 {[%clk 0:00:06]}  Rce8 {[%clk 0:00:03]} 32. Bf6+ {[%clk 0:00:06]}  Kg8 {[%clk 0:00:03]} 33. Rg7+ {[%clk 0:00:06]}  Kf8 {[%clk 0:00:04]} 34. Rg8# {[%clk 0:00:06]} 1-0


[Site "https://www.chess.com"]

[Event "Titled Tuesday Blitz April 4 Early 2023"]
[White "Piesik, Piotr"]
[Black "Ibadov, Dashgyn"]
[WhiteFideId "1136194"]
[BlackFideId "24107514"]
[WhiteElo "2299"]
[BlackElo "2208"]
[Result "0-1"]
[Round "09"]
[TimeControl "180+2"]
[Date "2023.04.04"]
[WhiteClock "0:01:40"]
[BlackClock "0:01:17"]

1. Nf3 {[%clk 0:02:50]}  d5 {[%clk 0:02:59]} 2. g3 {[%clk 0:02:51]}  Nd7 {[%clk 0:02:59]} 3. Bg2 {[%clk 0:02:51]}  e5 {[%clk 0:03:00]} 4. d3 {[%clk 0:02:52]}  Ngf6 {[%clk 0:03:00]} 5. O-O {[%clk 0:02:52]}  Bd6 {[%clk 0:03:01]} 6. Nbd2 {[%clk 0:02:53]}  O-O {[%clk 0:03:00]} 7. e4 {[%clk 0:02:53]}  c6 {[%clk 0:02:59]} 8. Qe2 {[%clk 0:02:52]}  Re8 {[%clk 0:02:56]} 9. a4 {[%clk 0:02:51]}  a5 {[%clk 0:02:48]} 10. Nb3 {[%clk 0:02:51]}  h6 {[%clk 0:02:42]} 11. Bd2 {[%clk 0:02:50]}  b6 {[%clk 0:02:36]} 12. Rfd1 {[%clk 0:02:48]}  Ba6 {[%clk 0:02:33]} 13. Qe1 {[%clk 0:02:48]}  Qc7 {[%clk 0:02:32]} 14. Nh4 {[%clk 0:02:46]}  Rac8 {[%clk 0:02:10]} 15. Nf5 {[%clk 0:02:45]}  Bf8 {[%clk 0:02:11]} 16. Ne3 {[%clk 0:02:32]}  d4 {[%clk 0:02:10]} 17. Nf5 {[%clk 0:02:31]}  c5 {[%clk 0:02:09]} 18. Bf1 {[%clk 0:02:29]}  c4 {[%clk 0:02:07]} 19. dxc4 {[%clk 0:02:28]}  Bxc4 {[%clk 0:02:08]} 20. Bxc4 {[%clk 0:02:23]}  Qxc4 {[%clk 0:02:09]} 21. Rdc1 {[%clk 0:02:22]}  g6 {[%clk 0:01:55]} 22. Nxh6+ {[%clk 0:02:19]}  Kh7 {[%clk 0:01:55]} 23. Nf5 {[%clk 0:01:55]}  gxf5 {[%clk 0:01:54]} 24. exf5 {[%clk 0:01:56]}  e4 {[%clk 0:01:47]} 25. Bg5 {[%clk 0:01:51]}  e3 {[%clk 0:01:41]} 26. fxe3 {[%clk 0:01:50]}  dxe3 {[%clk 0:01:42]} 27. Rd1 {[%clk 0:01:41]}  Qxc2 {[%clk 0:01:20]} 28. Nd4 {[%clk 0:01:40]}  Qf2+ {[%clk 0:01:17]} 29. Qxf2 {[%clk 0:01:39]}  exf2+ {[%clk 0:01:18]} 30. Kxf2 {[%clk 0:01:40]}  Ne4+ {[%clk 0:01:17]} 0-1


[Site "https://www.chess.com"]